[Event "43rd Guernsey Festival 2017"]
[Site "Vale"]
[Date "2017.10.15"]
[Round "1"]
[White "Curtis, John E"]
[Black "Hawkins, James N H"]
[Result "1/2-1/2"]
[ECO "A46"]
[WhiteElo "2093"]
[BlackElo "1920"]
[Annotator "NA RC"]
[PlyCount "48"]
[EventDate "2017.??.??"]
[EventType "swiss"]
[EventCountry "GCI"]
[SourceTitle "playchess.com"]
[Source "ChessBase"]
[SourceQuality "1"]
[TimeControl "40/6000+30:2400+30"]

{[%evp 8,48,3,8,0,32767,32767,32767,25,22,28,28,20,-7,32767,4,17,7,29,34,23,6,17,8,17,13,25,12,26,20,48,15,32767,32767,72,32767,0,6,5,17,7,-12,20]} 1. d4 {[%emt 0:00:00]} Nf6 {[%emt 0:00:09]} 2. Nf3 {[%emt 0:00:00]} e6 {[%emt 0:01:17]} 3. e3 {[%emt 0:00:00]} b6 {[%emt 0:00:28]} 4. Bd3 {[%emt 0:00:33]} Bb7 {[%emt 0:00:08]} 5. Nbd2 {[%emt 0:00:10]} d5 {[%emt 0:03:47]} 6. O-O {[%emt 0:01:45]} Nbd7 {[%emt 0:01:23]} 7. b3 {[%emt 0:03:12] D05: Colle System with ...e6} (7. c4 Bd6 8. Qe2 Ne4 9. cxd5 exd5 10. Ba6 Qc8 11. Bxb7 Qxb7 12. b3 O-O 13. Bb2 Rae8 14. Rac1 Re6 15. Rc2 Nxd2 16. Qxd2 a5 17. Qc1 a4 18. Ba3 c5 {½-½ (18) Tomashevsky,E (2710)-Jakovenko,D (2710) Sochi 2017}) 7... g6 {[%emt 0:10:11]} 8. Bb2 {[%emt 0:01:15]} Bg7 {[%emt 0:00:09]} 9. c4 {[%emt 0:13:24]} O-O {[%emt 0:05:49] LiveBook: 3 Games} 10. Rc1 {[%emt 0:02:28]} Ne4 {[%emt 0:14:26]} 11. Qc2 {[%emt 0:11:41]} Nxd2 {[%emt 0:02:28]} 12. Nxd2 {[%emt 0:01:00]} Rc8 {[%emt 0:13:54]} 13. cxd5 {[%emt 0:14:10]} exd5 {[%emt 0:00:27]} 14. Nf3 $146 {[%emt 0:04:53]} Re8 {[%emt 0:00:32]} 15. Rfd1 {[%emt 0:01:44]} Qe7 {[%emt 0:02:56]} 16. Qe2 {[%emt 0:02:10]} Nb8 {[%emt 0:04:23]} 17. Rd2 {[%emt 0:06:46]} Red8 {[%emt 0:10:24]} 18. Rdc2 {[%emt 0:00:27]} a6 {[%emt 0:01:23]} 19. Qd2 {[%emt 0:06:04]} f6 {[%emt 0:07:16]} 20. b4 {[%emt 0:02:46]} Bf8 {[%emt 0:01:07]} 21. b5 {[%emt 0:07:18]} axb5 {[%emt 0:03:58]} 22. Bxb5 {[%emt 0:00:34]} c6 {[%emt 0:01:13]} 23. Bd3 {[%emt 0:02:12]} Nd7 {[%emt 0:04:34]} 24. Re1 {[%emt 0:07:39]} f5 $11 {[%emt 0:00:20]} 1/2-1/2

[Event "43rd Guernsey Festival 2017"]
[Site "Vale"]
[Date "2017.10.15"]
[Round "1"]
[White "Fassaert, Desire"]
[Black "Hoogland, Dirk"]
[Result "1/2-1/2"]
[ECO "A04"]
[WhiteElo "1923"]
[BlackElo "2098"]
[Annotator "NA RC"]
[PlyCount "146"]
[EventDate "2017.??.??"]
[EventType "swiss"]
[EventCountry "GCI"]
[SourceTitle "playchess.com"]
[Source "ChessBase"]
[SourceQuality "1"]
[TimeControl "40/6000+30:2400+30"]

{[%evp 8,146,25,43,45,45,32767,32767,32767,32767,32767,29,40,27,44,35,43,10,0,-13,-4,-6,-17,-28,22,-14,0,-4,32767,-11,0,0,0,-43,32767,32767,32767,0,0,0,0,32767,32767,32767,32767,32767,32767,32767,32767,32767,0,0,32767,32767,32767,32767,32767,4,32767,32767,32767,32767,32767,32767,32767,32767,32767,32767,32767,0,0,0,0,0,0,0,0,32767,0,0,0,0,0,0,0,0,0,0,0,0,335,215,377,620,647,314,415,339,445,396,411,374,1238,1660,791,2481,5091,875,1657,5077,4818,1127,6091,5621,2699,220,237,851,237,220,5398,1091,2251,6289,2525,6341,2532,1360,1094,937,1094,3049,3375,677,725,0,1649,0,5485,0,1922]} 1. Nf3 {[%emt 0:00:00]} c5 {[%emt 0:00:10]} 2. c4 {[%emt 0:00:00]} Nc6 {[%emt 0:00:08]} 3. d4 {[%emt 0:00:42]} cxd4 {[%emt 0:00:25]} 4. Nxd4 {[%emt 0:00:12]} g6 {[%emt 0:00:15]} 5. e4 {[%emt 0:04:54]} Nf6 {[%emt 0:00:25]} 6. Nc3 {[%emt 0:00:14]} d6 {[%emt 0:00:14]} 7. Be2 {[%emt 0:00:43]} Nxd4 {[%emt 0:00:31]} 8. Qxd4 {[%emt 0:00:25]} Bg7 {[%emt 0:00:09]} 9. O-O {[%emt 0:13:50]} O-O {[%emt 0:01:02]} 10. Qd1 {[%emt 0:00:42]} Be6 {[%emt 0:01:49]} 11. Be3 {[%emt 0:17:33]} Qa5 {[%emt 0:05:35] LiveBook: 12 Games} 12. f3 {[%emt 0:10:05] B36: Sicilian: Maroczy Bind: Gurgenidze System} (12. Bd4 Rfc8 13. b3 a6 14. Nd5 Bxd5 15. exd5 Nd7 16. Re1 Rc7 17. Bxg7 Kxg7 18. Qd4+ Kg8 19. Bf1 Re8 20. Re3 {½-½ (53) Pantsulaia,L (2611)-Krivoshey,S (2531) Dubai 2006}) 12... Rfc8 {[%emt 0:05:45]} 13. Nd5 {[%emt 0:06:37]} Nxd5 {[%emt 0:03:25]} 14. cxd5 {[%emt 0:00:11]} Bd7 {[%emt 0:00:08]} 15. Qb3 {[%emt 0:07:40]} Rc7 $146 {[%emt 0:04:28]} ({Predecessor:} 15... b5 16. Rac1 a6 17. Kf2 h5 18. g3 Bh3 19. Rfd1 Bd7 {½-½ (31) Shorokhov,A (2471)-Kretov,E (2138) Internet 2006}) 16. Rfc1 {[%emt 0:04:56]} Rac8 {[%emt 0:01:23]} 17. Rxc7 {[%emt 0:04:09]} Rxc7 {[%emt 0:00:34]} 18. Kf1 {[%emt 0:08:04]} Ba4 {[%emt 0:19:15]} 19. Qa3 $1 {[%emt 0:00:36]} Rc2 {[%emt 0:00:31]} 20. b4 {[%emt 0:13:27]} (20. Rb1 $5 {[%cal Rb2b4]} b5 21. b3 $11) 20... Qc7 {[%emt 0:06:56]} 21. Rc1 {[%emt 0:00:37]} b5 {[%emt 0:02:37]} 22. Bd3 Rxc1+ {[%emt 0:06:09]} 23. Qxc1 {[%emt 0:02:42]} Qxc1+ {[%emt 0:02:17]} 24. Bxc1 {[%emt 0:00:02]} Bc3 {[%emt 0:00:16]} 25. a3 {[%emt 0:00:26]} e6 {[%emt 0:01:37]} 26. dxe6 {[%emt 0:00:39]} fxe6 {[%emt 0:00:09]} 27. Ke2 {[%emt 0:00:30]} Kf7 {[%emt 0:00:15]} 28. Bb1 {[%emt 0:05:51]} d5 {[%emt 0:03:45]} 29. exd5 {[%emt 0:00:54]} exd5 {[%emt 0:00:17]} 30. Ba2 {[%emt 0:02:32]} Ke6 {[%emt 0:00:25]} 31. Kd3 {[%emt 0:00:06]} Be5 {[%emt 0:04:59]} 32. f4 {[%emt 0:02:51]} Bc7 {[%emt 0:05:05]} 33. g3 {[%emt 0:01:09]} Bd1 {[%emt 0:02:13]} 34. Bb2 {[%emt 0:01:03]} Bf3 {[%emt 0:01:36]} 35. Bd4 {[%emt 0:00:18]} a5 {[%emt 0:02:24]} 36. bxa5 {[%emt 0:01:01]} Bxa5 {[%emt 0:00:08]} 37. Bc3 {[%emt 0:00:24]} Bd8 {[%emt 0:00:28]} 38. Bb3 {[%emt 0:00:54]} Be4+ {[%emt 0:00:44]} 39. Ke3 {[%emt 0:00:22]} Bb6+ {[%emt 0:00:31]} 40. Bd4 {[%emt 0:00:44]} Ba5 {[%emt 0:40:21]} 41. Bc5 {[%emt 0:05:36]} h5 {[%emt 0:00:00]} 42. Bd1 {[%emt 0:06:00]} Kd7 $1 {[%emt 0:00:00]} 43. Be2 {[%emt 0:04:19]} Kc6 {[%emt 0:00:00]} 44. Bd4 {[%emt 0:00:08]} Bd8 {[%emt 0:00:00]} 45. Bc3 {[%emt 0:06:34]} Be7 {[%emt 0:00:00]} 46. Bb4 {[%emt 0:00:22]} Bc5+ {[%emt 0:00:00]} 47. Bxc5 {[%emt 0:06:08]} Kxc5 {[%emt 0:00:00]} 48. h3 {[%emt 0:01:20]} Bg2 $2 {[%emt 0:00:00]} (48... Bf5 $11 {und Schwarz muss sich keine Sorgen machen.}) 49. Bd3 {[%emt 0:01:05]} d4+ {[%emt 0:00:00]} 50. Kd2 {[%emt 0:00:12]} Bxh3 {[%emt 0:00:00]} 51. Bxg6 {[%emt 0:00:10]} Bg4 {[%emt 0:00:00]} 52. Kd3 {[%emt 0:06:01]} Kd5 {[%emt 0:00:00]} 53. Be4+ {[%emt 0:09:02]} Kc5 {[%emt 0:00:00]} 54. f5 {[%emt 0:00:23]} Bd1 {[%emt 0:00:00]} (54... Bh3 $142 55. f6 Bf1+ 56. Kd2 Bc4) 55. f6 {[%emt 0:00:10]} Bb3 {[%emt 0:00:00]} 56. Bg6 {[%emt 0:00:10]} Bc4+ {[%emt 0:00:00]} 57. Kd2 {[%emt 0:00:16]} (57. Ke4 $142 Kd6 58. Kxd4) 57... Kd6 {[%emt 0:00:00]} 58. Bxh5 {[%emt 0:00:41]} Ke6 {[%emt 0:00:00]} 59. f7 {[%emt 0:00:48]} Ke7 {[%emt 0:00:00]} 60. g4 {[%emt 0:00:45]} Bd5 {[%emt 0:00:00]} 61. g5 $2 {[%emt 0:00:26]} (61. Kd3 Bf3 62. Kxd4) 61... Be4 {[%emt 0:00:00]} 62. Be2 (62. g6 $142 Kf8 63. Kc1) 62... Kxf7 {[%emt 0:00:00]} 63. Bxb5 {[%emt 0:01:49]} Ke7 {[%emt 0:00:00]} 64. Bd3 {[%emt 0:00:15]} (64. a4 $142 Ke6 65. a5) 64... Bc6 {[%emt 0:00:00]} 65. g6 {[%emt 0:01:11]} Kf6 {[%emt 0:00:00]} 66. Ke2 {[%emt 0:00:27]} Ba4 {[%emt 0:00:00]} 67. Kf3 {[%emt 0:00:23]} Bc6+ {[%emt 0:00:00]} 68. Kf4 {[%emt 0:00:14]} Be8 {[%emt 0:00:00]} 69. Bc2 {[%emt 0:00:49]} ({Not} 69. g7 Kxg7 70. Ke5 Kf7 $16) 69... Bc6 {[%emt 0:00:00]} 70. Be4 {[%emt 0:00:30]} Ba4 {[%emt 0:00:00]} 71. Bd3 $2 {[%emt 0:00:31]} (71. Kf3 $18 Bb5 72. Kf2) 71... Bc6 {[%emt 0:00:00]} 72. Bf5 $2 {[%emt 0:00:28]} ({White should play} 72. Kg4 $18 Bd7+ 73. Kh5) 72... Ba4 $2 {[%emt 0:00:00] [#]} (72... Bb5 $11) 73. Bd3 {[%emt 0:00:29]} (73. Be4 $1 $18 Bb5 74. Kf3) 73... Bc6 $18 {[%emt 0:00:00] Kg5+ Kg7 Kf4} 1/2-1/2

[Event "43rd Guernsey Festival 2017"]
[Site "Vale"]
[Date "2017.10.15"]
[Round "1"]
[White "Haisma, Henk"]
[Black "Stuart, Brian"]
[Result "1/2-1/2"]
[ECO "A00"]
[WhiteElo "1808"]
[BlackElo "1654"]
[Annotator "NA RC"]
[PlyCount "65"]
[EventDate "2017.??.??"]
[EventType "swiss"]
[EventCountry "GCI"]
[SourceTitle "playchess.com"]
[Source "ChessBase"]
[SourceQuality "1"]
[TimeControl "40/6000+30:2400+30"]

{[%evp 9,59,-4,-4,-12,32767,32767,32767,32767,-11,-9,0,-9,-18,-18,32767,32767,32767,32767,32767,32767,-52,-76,-60,-65,-67,-74,-52,-54,-67,-65,-70,-97,32767,32767,32767,32767,-79,32767,-17,-17,0,-9,32767,32767,32767,-79,-109,-91,32767,32767,32767,-326]} 1. b4 {[%emt 0:00:37]} e6 {[%emt 0:01:16]} 2. Bb2 {[%emt 0:00:07]} Nf6 {[%emt 0:00:07]} 3. a3 {[%emt 0:00:05]} d5 {[%emt 0:03:12]} 4. e3 {[%emt 0:01:45]} c5 {[%emt 0:05:41]} 5. bxc5 {[%emt 0:00:27]} Bxc5 {[%emt 0:00:22] LiveBook: 5 Games} 6. Nf3 {[%emt 0:00:03]} Nc6 {[%emt 0:01:09] A00: Irregular Openings} (6... O-O 7. c4 Nc6 8. d4 Bd6 9. Nbd2 b6 10. cxd5 exd5 11. Bb5 Bb7 12. O-O Rc8 13. Qe2 Qe7 14. Rfc1 {½-½ (57) Degterev,P (2475)-Zhak,B (2556) ICCF email 2009}) 7. Be2 {[%emt 0:01:13]} O-O {[%emt 0:00:53]} 8. O-O {[%emt 0:00:07]} Re8 {[%emt 0:08:10]} 9. d4 {[%emt 0:00:21]} Bd6 {[%emt 0:01:06]} 10. c4 {[%emt 0:00:10]} b6 {[%emt 0:13:50]} 11. cxd5 $146 {[%emt 0:03:15]} ({Predecessor:} 11. Nc3 Bb7 12. cxd5 exd5 13. Bd3 g6 14. Nb5 {1-0 (38) Von Saleski,M-Ohnmacht,R DESC email 2001}) 11... exd5 {[%emt 0:00:16]} 12. Nc3 {[%emt 0:02:22]} a6 {[%emt 0:04:08]} 13. Rc1 {[%emt 0:04:53]} Bb7 {[%emt 0:00:38]} 14. Re1 {[%emt 0:04:17]} Rc8 {[%emt 0:02:57]} 15. Bf1 {[%emt 0:06:04]} Na5 {[%emt 0:14:11]} 16. Nd2 {[%emt 0:09:20]} b5 {[%emt 0:06:46]} 17. g3 {[%emt 0:14:30]} Nc4 {[%emt 0:06:43]} 18. Nxc4 {[%emt 0:00:15]} bxc4 {[%emt 0:00:29]} 19. Qc2 {[%emt 0:06:01]} h5 {[%emt 0:06:11]} 20. Ra1 {[%emt 0:09:20]} h4 {[%emt 0:07:22]} 21. Reb1 {[%emt 0:01:59]} Rc7 {[%emt 0:02:58]} 22. Bg2 {[%emt 0:03:43]} hxg3 {[%emt 0:00:50]} 23. hxg3 {[%emt 0:00:40]} Qe7 {[%emt 0:02:54]} (23... Bc6 $17) 24. Bc1 {[%emt 0:02:06]} Qd7 {[%emt 0:04:33]} 25. Rb6 {[%emt 0:03:35]} Bf8 {[%emt 0:01:42]} 26. Rab1 {[%emt 0:03:53]} Bc8 {[%emt 0:02:42] [#]} 27. Qa4 $2 {[%emt 0:05:01]} (27. Rxf6 $1 $18 {[%mdl 512]} gxf6 28. Nxd5) 27... Qxa4 {[%emt 0:02:02]} 28. Nxa4 {[%emt 0:00:10]} Bf5 {[%emt 0:02:43]} 29. Ra1 {[%emt 0:07:26]} Re6 {[%emt 0:00:59]} 30. Bd2 $19 {[%emt 0:12:26]} (30. Rb8 $11 {and White has nothing to worry.}) 30... Rxb6 {[%emt 0:01:23]} 31. Nxb6 {[%emt 0:00:02]} c3 {[%emt 0:01:10]} 32. Bc1 {[%emt 0:00:01]} Be6 {[%emt 0:00:50]} 33. Kf1 {[%emt 0:04:04]} 1/2-1/2

[Event "43rd Guernsey Festival 2017"]
[Site "Vale"]
[Date "2017.10.15"]
[Round "1"]
[White "Colsen, Manuel"]
[Black "Baart, Edwin"]
[Result "1/2-1/2"]
[ECO "A06"]
[WhiteElo "1665"]
[BlackElo "1816"]
[Annotator "NA RC"]
[PlyCount "47"]
[EventDate "2017.??.??"]
[EventType "swiss"]
[EventCountry "GCI"]
[SourceTitle "playchess.com"]
[Source "ChessBase"]
[SourceQuality "1"]
[TimeControl "40/6000+30:2400+30"]

{[%evp 9,43,19,4,-22,3,3,12,-11,15,32767,29,39,45,29,59,22,23,0,33,0,49,36,42,29,29,0,0,32767,32767,32767,-64,-77,-80,0,0,0]} 1. Nf3 {[%emt 0:00:00]} d5 {[%emt 0:00:17]} 2. g3 {[%emt 0:01:38]} Nf6 {[%emt 0:00:42]} 3. Bg2 {[%emt 0:00:34]} e6 {[%emt 0:02:14]} 4. d4 {[%emt 0:02:38]} Be7 {[%emt 0:00:20]} 5. O-O {[%emt 0:04:33]} O-O {[%emt 0:00:09]} 6. Nbd2 {[%emt 0:11:43]} (6. c4 $5) 6... Nbd7 {[%emt 0:01:39]} 7. c4 {[%emt 0:00:46]} c6 {[%emt 0:01:02] LiveBook: 272 Games E07: Closed Catalan: Main Line (5 Nf3 0-0 6 0-0 Nbd7)} 8. a3 {[%emt 0:12:31]} Re8 {[%emt 0:09:37]} (8... b6 9. e4 Nxe4 10. Nxe4 dxe4 11. Ne5 Bb7 12. Bxe4 Nxe5 13. dxe5 Qc7 14. Re1 c5 15. h4 Rad8 16. Qf3 Bxe4 17. Rxe4 {0-1 (30) Mamedyarov,S (2736)-Dominguez Perez,L (2732) Berlin 2015}) 9. b4 {[%emt 0:04:24]} Bd6 {[%emt 0:10:18]} 10. Bb2 {[%emt 0:11:46]} Qe7 $146 {[%emt 0:07:22]} ({Predecessor:} 10... e5 11. cxd5 cxd5 12. dxe5 Nxe5 13. Nxe5 Bxe5 14. Bxe5 Rxe5 15. Nb3 {0-1 (32) Marmol Soley,E (2061)-Hassomal Daswani,B (2040) Mislata 2013}) 11. e3 {[%emt 0:08:18]} b6 {[%emt 0:04:01]} 12. c5 {[%emt 0:04:18]} Bc7 {[%emt 0:00:53]} 13. Re1 {[%emt 0:03:01]} Bb7 {[%emt 0:00:54]} 14. Rc1 {[%emt 0:02:58]} b5 {[%emt 0:00:28]} 15. Ne5 {[%emt 0:08:16]} a5 {[%emt 0:09:39]} 16. Nxd7 {[%emt 0:05:31]} Qxd7 {[%emt 0:02:07]} 17. e4 {[%emt 0:03:40]} dxe4 {[%emt 0:06:33]} 18. Nxe4 {[%emt 0:02:02]} Nd5 {[%emt 0:00:26]} 19. Nc3 {[%emt 0:10:36]} axb4 {[%emt 0:03:28]} 20. axb4 {[%emt 0:00:15]} Nxb4 {[%emt 0:00:39] [#]} 21. Nxb5 $1 {[%emt 0:00:16]} Ba6 {[%emt 0:18:07]} 22. Nxc7 $11 {[%emt 0:04:18]} Qxc7 {[%emt 0:00:39]} 23. Ra1 {[%emt 0:02:07]} Bc4 {[%emt 0:08:01]} 24. Bf1 {[%emt 0:01:29]} 1/2-1/2

[Event "43rd Guernsey Festival 2017"]
[Site "Vale"]
[Date "2017.10.15"]
[Round "1"]
[White "Salisbury, Paul"]
[Black "Dennis, Nigel W"]
[Result "0-1"]
[ECO "B40"]
[WhiteElo "1650"]
[BlackElo "1785"]
[Annotator "NA RC"]
[PlyCount "98"]
[EventDate "2017.??.??"]
[EventType "swiss"]
[EventCountry "GCI"]
[SourceTitle "playchess.com"]
[Source "ChessBase"]
[SourceQuality "1"]
[TimeControl "40/6000+30:2400+30"]

1. e4 {[%emt 0:00:00]} c5 {[%emt 0:00:07]} 2. Nf3 {[%emt 0:00:00]} e6 {[%emt 0:00:12]} 3. c3 {[%emt 0:01:17]} d5 {[%emt 0:00:33]} 4. exd5 {[%emt 0:01:59]} Qxd5 {[%emt 0:00:32]} 5. d4 {[%emt 0:00:47]} Nf6 {[%emt 0:00:26]} 6. Bd3 {[%emt 0:05:12]} Nc6 {[%emt 0:02:49]} 7. O-O {[%emt 0:04:12]} Be7 {[%emt 0:00:16]} 8. Na3 {[%emt 0:02:54]} cxd4 {[%emt 0:04:57]} 9. Nb5 {[%emt 0:00:25]} Qd8 {[%emt 0:01:30]} 10. Nbxd4 {[%emt 0:03:29]} Nxd4 {[%emt 0:00:23]} 11. Nxd4 {[%emt 0:06:42]} O-O {[%emt 0:00:26]} 12. Re1 {[%emt 0:00:18]} a6 {[%emt 0:01:32]} 13. a4 {[%emt 0:02:48]} Qc7 {[%emt 0:01:54]} 14. Bg5 {[%emt 0:16:58]} e5 {[%emt 0:10:43]} 15. Nf5 {[%emt 0:02:51]} Bxf5 {[%emt 0:04:00]} 16. Bxf5 {[%emt 0:01:39]} Rfe8 {[%emt 0:06:50]} 17. Qf3 {[%emt 0:11:39]} Nd5 {[%emt 0:07:43]} 18. Bxe7 {[%emt 0:06:25]} Nxe7 {[%emt 0:00:16]} 19. Be4 {[%emt 0:01:38]} Rab8 {[%emt 0:05:11]} 20. Rad1 {[%emt 0:01:51]} b5 {[%emt 0:09:29]} 21. axb5 {[%emt 0:11:01]} axb5 {[%emt 0:00:30]} 22. Re3 {[%emt 0:00:08]} g6 {[%emt 0:06:25]} 23. Qf6 {[%emt 0:04:43]} Rb6 {[%emt 0:02:05]} 24. Qh4 {[%emt 0:00:17]} Rd8 {[%emt 0:03:38]} 25. Rxd8+ {[%emt 0:07:43]} Qxd8 {[%emt 0:00:12]} 26. Rd3 {[%emt 0:02:29]} Rd6 {[%emt 0:00:43]} 27. Rxd6 {[%emt 0:04:19]} Qxd6 {[%emt 0:00:14]} 28. h3 {[%emt 0:03:54]} Kg7 {[%emt 0:00:54]} 29. Bf3 {[%emt 0:02:08]} Nf5 {[%emt 0:07:21]} 30. Qe4 {[%emt 0:00:19]} Qc5 {[%emt 0:12:41]} 31. Be2 {[%emt 0:01:22]} Nd6 {[%emt 0:00:56]} 32. Qd3 {[%emt 0:00:52]} f5 {[%emt 0:06:08]} 33. g3 {[%emt 0:00:50]} Kf6 {[%emt 0:00:29]} 34. Qf3 {[%emt 0:00:53]} Ne4 {[%emt 0:01:48]} 35. Bd3 {[%emt 0:00:51]} Ng5 {[%emt 0:01:23]} 36. Qg2 {[%emt 0:00:40]} e4 {[%emt 0:04:03]} 37. Be2 {[%emt 0:00:08]} b4 {[%emt 0:00:27]} 38. h4 {[%emt 0:00:29]} Ne6 {[%emt 0:01:14]} 39. cxb4 {[%emt 0:01:00]} Qxb4 {[%emt 0:00:14]} 40. f3 {[%emt 0:00:47]} Qxb2 {[%emt 0:41:40]} 41. fxe4 {[%emt 0:40:24]} Qd4+ {[%emt 0:00:49]} 42. Kh2 {[%emt 0:00:16]} Qxe4 {[%emt 0:00:46]} 43. Bf3 {[%emt 0:00:03]} Qe5 {[%emt 0:01:37]} 44. Qa2 {[%emt 0:00:56]} f4 {[%emt 0:02:58]} 45. g4 {[%emt 0:00:03]} h6 {[%emt 0:01:11]} 46. Qa8 {[%emt 0:00:25]} Qb2+ {[%emt 0:00:00]} 47. Kh3 {[%emt 0:00:00]} Qf2 {[%emt 0:00:00]} 48. Qh8+ {[%emt 0:00:00]} Ke7 {[%emt 0:00:00]} 49. Qh7+ {[%emt 0:00:00]} Kd6 {[%emt 0:00:00]} 0-1

[Event "43rd Guernsey Festival 2017"]
[Site "Vale"]
[Date "2017.10.15"]
[Round "1"]
[White "Almquist, Rutger"]
[Black "Glover, John"]
[Result "1/2-1/2"]
[ECO "A00"]
[WhiteElo "1589"]
[BlackElo "1765"]
[Annotator "NA RC"]
[PlyCount "49"]
[EventDate "2017.??.??"]
[EventType "swiss"]
[EventCountry "GCI"]
[SourceTitle "playchess.com"]
[Source "ChessBase"]
[SourceQuality "1"]
[TimeControl "40/6000+30:2400+30"]

1. b4 Nf6 2. Bb2 d5 3. e3 Bf5 4. Nf3 e6 5. a3 Bd6 6. d4 Nbd7 7. c4 dxc4 8. Bxc4 a6 9. O-O O-O 10. Nbd2 c6 11. Re1 Ne4 12. Nxe4 Bxe4 13. Bd3 Bxd3 14. Qxd3 Qf6 15. e4 Qg6 16. Qe2 f6 17. e5 fxe5 18. dxe5 Be7 19. Qe3 Rf7 20. Qe4 Qxe4 21. Rxe4 Re8 22. Bd4 Bd8 23. Rc1 Nb6 24. Bxb6 Bxb6 25. Rd1 1/2-1/2

[Event "43rd Guernsey Festival 2017"]
[Site "Vale"]
[Date "2017.10.16"]
[Round "2"]
[White "Hamperl, Fred"]
[Black "Hewson, Brian W R"]
[Result "0-1"]
[ECO "B11"]
[WhiteElo "2062"]
[BlackElo "1995"]
[Annotator "NA RC"]
[PlyCount "28"]
[EventDate "2017.??.??"]
[EventType "swiss"]
[EventCountry "GCI"]
[SourceTitle "playchess.com"]
[Source "ChessBase"]
[SourceQuality "1"]
[TimeControl "40/6000+30:2400+30"]

{[%evp 12,28,39,6,38,9,18,-58,-24,-221,-224,-228,-222,-511,-517,-523,-545,-975,-1110]} 1. e4 {[%emt 0:00:00]} c6 {[%emt 0:00:08]} 2. Nc3 {[%emt 0:00:07]} d5 {[%emt 0:01:16]} 3. Nf3 {[%emt 0:00:39]} Bg4 {[%emt 0:00:27]} 4. h3 {[%emt 0:00:23]} Bxf3 {[%emt 0:00:06]} 5. Qxf3 {[%emt 0:00:04]} e6 {[%emt 0:03:43]} 6. Be2 {[%emt 0:01:00]} Nd7 {[%emt 0:04:25]} 7. O-O {[%emt 0:02:48]} Ngf6 {[%emt 0:11:48]} 8. d3 {[%emt 0:01:22]} Bd6 {[%emt 0:02:05] LiveBook: 12 Games} 9. Bg5 {[%emt 0:14:32]} ({White should try} 9. d4 $11) 9... h6 {[%emt 0:11:16]} 10. Bh4 $2 {[%emt 0:00:41] [#]} (10. Bf4 $11 {and White is okay.} Bxf4 11. Qxf4) 10... Ne5 $1 {[%emt 0:04:52]} 11. Qe3 {[%emt 0:02:11] [#]} d4 $1 {[%emt 0:01:35]} 12. Qg3 $2 {[%emt 0:09:40]} (12. Qxd4 Nf3+ 13. Bxf3 Bh2+ 14. Kxh2 Qxd4 15. Be2) 12... g5 {[%emt 0:15:31]} ({Stronger than} 12... dxc3 13. Qxg7 Rg8 14. Qxf6 $16) 13. f4 {[%emt 0:02:19]} gxh4 {[%emt 0:01:17]} (13... dxc3 $2 14. fxe5 cxb2 15. Rab1 $19) 14. Qg7 $19 {[%emt 0:07:19]} (14. Qe1 $142 Ng6 15. e5 dxc3 16. exd6) 14... Rh7 {[%emt 0:00:35]} 0-1

[Event "43rd Guernsey Festival 2017"]
[Site "Vale"]
[Date "2017.10.16"]
[Round "2"]
[White "Rosen, Daniel B"]
[Black "Van den Boogaart, Jan Maarten"]
[Result "1-0"]
[ECO "B23"]
[WhiteElo "2042"]
[BlackElo "1991"]
[Annotator "NA RC"]
[PlyCount "51"]
[EventDate "2017.??.??"]
[EventType "swiss"]
[EventCountry "GCI"]
[SourceTitle "playchess.com"]
[Source "ChessBase"]
[SourceQuality "1"]
[TimeControl "40/6000+30:2400+30"]

{[%evp 8,51,0,-29,0,-28,-20,-21,-24,-21,-11,-16,0,-26,-28,-40,-35,-62,-52,-61,-60,-60,-60,-110,-46,-52,-45,-70,-79,-79,-38,-43,-40,-31,-45,-46,-33,-41,-32,-52,-39,-41,0,0,0,-39]} 1. e4 {[%emt 0:00:00]} c5 {[%emt 0:00:14]} 2. Nc3 {[%emt 0:00:00]} Nc6 {[%emt 0:00:24]} 3. f4 {[%emt 0:00:07]} e6 {[%emt 0:03:21]} 4. Nf3 {[%emt 0:00:11]} d5 {[%emt 0:01:58]} 5. d3 {[%emt 0:04:57]} Nf6 {[%emt 0:01:44]} 6. Be2 {[%emt 0:03:55]} Be7 {[%emt 0:02:14]} 7. O-O {[%emt 0:00:15] LiveBook: 6 Games} O-O {[%emt 0:02:12]} 8. Qe1 {[%emt 0:06:08]} a6 {[%emt 0:07:23]} 9. a4 {[%emt 0:03:13]} Rb8 {[%emt 0:10:33]} 10. Kh1 $146 {[%emt 0:09:45] B23: Closed Sicilian: Lines without g3} ({Predecessor:} 10. Qg3 b5 11. axb5 axb5 12. e5 Ne8 13. Nd1 Nd4 14. Nxd4 cxd4 15. Nf2 Qc7 16. Bd1 f6 17. Ng4 f5 {0-1 (38) Halser,W (2195)-Schlosser,M (2365) Austria 1994}) 10... b5 {[%emt 0:06:14]} 11. axb5 {[%emt 0:00:15]} axb5 {[%emt 0:00:00]} 12. Ne5 {[%emt 0:01:42]} Nd4 {[%emt 0:03:16]} 13. Bd1 $1 {[%emt 0:01:33]} Bb7 {[%emt 0:06:50]} 14. exd5 $1 {[%emt 0:12:21]} Nxd5 {[%emt 0:09:03]} ({But not} 14... Bxd5 $6 15. Nxd5 Qxd5 16. Ra7 $14) 15. Ne4 {[%emt 0:03:05]} Ra8 {[%emt 0:08:23]} (15... Nb4 $17 16. Ra7 f6) 16. Rxa8 {[%emt 0:01:55]} Bxa8 {[%emt 0:00:10]} 17. Nf3 {[%emt 0:01:38]} Nf5 {[%emt 0:05:41]} 18. Ng3 {[%emt 0:01:35]} Nh4 {[%emt 0:03:11]} 19. Nxh4 {[%emt 0:03:32]} Bxh4 {[%emt 0:00:07]} 20. f5 {[%emt 0:00:18]} exf5 {[%emt 0:13:29]} 21. Rxf5 {[%emt 0:00:39]} Re8 {[%emt 0:00:24]} 22. Re5 {[%emt 0:02:15]} Rxe5 {[%emt 0:01:53]} 23. Qxe5 {[%emt 0:00:08]} Bf6 {[%emt 0:00:20]} 24. Qe1 {[%emt 0:02:06]} Bh4 {[%emt 0:09:18]} 25. Qe5 {[%emt 0:09:37]} Bf6 {[%emt 0:00:26]} 26. Qe1 $15 {[%emt 0:00:12]} 1-0

[Event "43rd Guernsey Festival 2017"]
[Site "Vale"]
[Date "2017.10.16"]
[Round "2"]
[White "Bakker, Joop"]
[Black "Dilleigh, Stephen P"]
[Result "1/2-1/2"]
[ECO "C01"]
[WhiteElo "1853"]
[BlackElo "2063"]
[Annotator "NA RC"]
[PlyCount "28"]
[EventDate "2017.??.??"]
[EventType "swiss"]
[EventCountry "GCI"]
[SourceTitle "playchess.com"]
[Source "ChessBase"]
[SourceQuality "1"]
[TimeControl "40/6000+30:2400+30"]

{[%evp 8,28,16,14,34,47,51,16,0,0,16,12,9,8,60,51,43,40,66,81,74,0,58]} 1. e4 {[%emt 0:00:00]} e6 {[%emt 0:00:11]} 2. d4 {[%emt 0:00:00]} d5 {[%emt 0:00:11]} 3. exd5 {[%emt 0:00:00]} exd5 {[%emt 0:00:13]} 4. Nf3 {[%emt 0:00:00]} Bd6 {[%emt 0:00:52]} 5. c4 {[%emt 0:00:00]} dxc4 {[%emt 0:00:17]} 6. Bxc4 {[%emt 0:00:03]} Nf6 {[%emt 0:00:24]} 7. O-O {[%emt 0:02:55]} O-O {[%emt 0:00:20]} 8. Bg5 {[%emt 0:01:03]} h6 {[%emt 0:07:18] LiveBook: 41 Games} 9. Bh4 {[%emt 0:00:11]} Nc6 {[%emt 0:00:54]} 10. h3 {[%emt 0:11:23]} Bf5 {[%emt 0:18:13]} 11. Nc3 {[%emt 0:02:05]} g5 {[%emt 0:18:17]} 12. Bg3 {[%emt 0:01:47]} Bxg3 {[%emt 0:00:15]} 13. fxg3 {[%emt 0:00:08]} Bg6 {[%emt 0:01:33]} 14. Ne5 {[%emt 0:17:43]} ({Better is} 14. d5 $14 Na5 15. Be2) 14... Nxe5 $14 {[%emt 0:11:50]} (14... Kg7 $11) 1/2-1/2